[Event "Czech Open-Rapid 2022"]
[Site "Pardubice"]
[Date "2022.07.20"]
[Round "2.15"]
[White "Cerveny, Martin"]
[Black "Vesely, Emanuel"]
[Result "1-0"]
[ECO "D35"]
[WhiteElo "2396"]
[BlackElo "1808"]
[Annotator "TA"]
[PlyCount "47"]
[EventDate "2022.07.20"]
[EventType "swiss"]
[EventCountry "CZE"]
[SourceTitle "playchess.com"]
[Source "ChessBase"]
[SourceQuality "1"]
[TimeControl "1200+10"]

{[%evp 24,47,27,21,29,0,72,70,76,68,90,86,141,146,131,136,146,141,122,139,812,821,820,812,914,840]} 1. d4 {[%emt 0:00:03]} d5 {[%emt 0:00:06]} 2. c4 {[%emt 0:00:02]} e6 {[%emt 0:00:03]} 3. Nc3 {[%emt 0:00:02]} Nf6 {[%emt 0:00:12]} 4. cxd5 {[%emt 0:00:04]} exd5 {[%emt 0:00:02]} 5. Bg5 {[%emt 0:00:02]} Be7 {[%emt 0:00:03]} 6. e3 {[%emt 0:00:01]} c6 {[%emt 0:00:02]} 7. Bd3 {[%emt 0:00:03]} h6 {[%emt 0:00:01]} 8. Bh4 {[%emt 0:00:03]} Nbd7 {[%emt 0:00:15][%cal Bb8d7,Bd7f8,Bf8e6][%mdl 32]} 9. Qc2 {[%emt 0:00:15]} O-O {[%emt 0:00:10]} 10. Nge2 {[%emt 0:00:06]} Re8 {[%emt 0:00:25]} 11. f3 {[%emt 0:01:15]} Nf8 {[%emt 0:00:31] 11...b5 is the modern continuation.} 12. O-O {[%emt 0:00:21]} Ne6 {[%emt 0:01:47]} 13. Rad1 {[%emt 0:00:29]} Bd7 {[%emt 0:01:17] D36: Queen's Gambit Declined: Exchange Variation: Main line (5 Bg5 c6 6 Qc2).} 14. e4 {[%emt 0:01:15] [#]} Nh5 $146 {[%emt 0:01:57]} (14... dxe4 $1 $11 {remains equal.} 15. fxe4 Ng4 16. Bxe7 Rxe7) ({Predecessor:} 14... dxe4 15. fxe4 Ng4 16. Bxe7 Qxe7 17. Qd2 Qg5 18. Rf3 {½-½ (18) Marshall,J-Butler,B Canberra 1993}) 15. Bxe7 $16 {[%emt 0:00:27]} ({Reject} 15. exd5 Bxh4 16. dxe6 Bxe6 $11) 15... Qxe7 {[%emt 0:00:23] White is slightly better.} 16. Qd2 {[%emt 0:00:41] Inhibits Nhf4.} dxe4 {[%emt 0:00:50]} 17. fxe4 {[%emt 0:00:05][%cal Bf3e4,Be4e5][%mdl 32]} Qg5 {[%emt 0:00:37] [#]} (17... Rad8 $142) 18. e5 $1 {[%emt 0:01:49]} Qxd2 {[%emt 0:00:41]} 19. Rxd2 {[%emt 0:00:02] Threatens to win with g4.} g6 {[%emt 0:01:23]} 20. g4 {[%emt 0:00:19]} Nhg7 {[%emt 0:00:01]} 21. Ne4 $36 {[%emt 0:00:02][%cal Bc3e4,Be4f6,Bf6d7][%mdl 2080] Strongly threatening Nf6+. White is really pushing. White is much more active. The black rooks are badly placed.} Rf8 $2 {[%emt 0:00:31][%mdl 8192] [#]} (21... Re7 $16 22. d5 Nf8) 22. Nf6+ $18 {[%emt 0:00:03] White is clearly winning.} Kh8 {[%emt 0:00:03]} 23. Nxd7 {[%emt 0:00:02]} Rfd8 {[%emt 0:00:05]} 24. Rxf7 {[%emt 0:01:33] Black did not feel at home in the position after the opening.  Weighted Error Value: White=0.05 (flawless) /Black=0.40} 1-0

[Event "Czech Open-Rapid 2022"]
[Site "Pardubice"]
[Date "2022.07.20"]
[Round "2.16"]
[White "Brozka, Karel"]
[Black "Blatny, Pavel"]
[Result "0-1"]
[ECO "A40"]
[WhiteElo "2188"]
[BlackElo "2325"]
[Annotator "TA"]
[PlyCount "92"]
[EventDate "2022.07.20"]
[EventType "swiss"]
[EventCountry "CZE"]
[SourceTitle "playchess.com"]
[Source "ChessBase"]
[SourceQuality "1"]
[TimeControl "1200+10"]

{[%evp 9,92,6,10,4,12,14,15,19,7,10,21,21,21,20,29,28,14,7,51,8,39,0,64,59,35,47,114,97,122,21,29,17,115,118,150,45,48,40,48,45,36,51,53,50,53,50,31,9,8,8,10,0,0,0,0,0,0,0,0,0,0,0,0,0,0,0,0,0,0,0,0,0,0,0,0,0,0,-5110,-2352,-5110,-5106,-5097,-5097,-29984,-29982]} 1. d4 b6 2. c4 e6 3. Nf3 Bb7 4. Bg5 Be7 5. Bxe7 Qxe7 6. Nc3 {A40: Unusual replies to 1 d4.} f5 {Inhibits e4.} 7. g3 Nf6 8. Bg2 {The position is equal.} Ne4 9. Qc2 Nxc3 10. Qxc3 a5 11. O-O O-O {[#]} 12. Rfd1 $146 ({Predecessor:} 12. Ne1 Bxg2 13. Nxg2 d6 14. Rae1 Qf6 15. Qd2 Nd7 16. b3 Rae8 17. f4 {½-½ (30) Stachowiak,K (2470)-Eggink,R (2162) Warsaw 2013}) 12... d6 13. c5 Bd5 14. Nd2 Bxg2 15. Kxg2 Nd7 (15... bxc5 $11 16. dxc5 d5) 16. cxd6 $14 cxd6 17. Rac1 {[%cal Ba1c1,Bc1c3,Bc3f3][%mdl 32]} f4 ({Black should try} 17... Nf6 $14) 18. Qc7 $1 $16 Rad8 19. Ne4 (19. Nf3 $16) 19... d5 $11 20. Nd6 Qf6 (20... e5 $11) 21. Rc3 $16 e5 {[#]} 22. Nb7 (22. Qc6 $1 $16) 22... exd4 $14 (22... fxg3 $2 23. Rf3 Qg5 24. hxg3 $18 (24. Nxd8 gxf2+ 25. Kxf2 Rxd8 $18)) 23. Rf3 {[%cal Rf3f4]} Ne5 $1 24. Rxf4 ({Reject} 24. Nxd8 Nxf3 25. exf3 fxg3 26. Qxg3 Rxd8 $15) 24... Rd7 25. Qxd7 Nxd7 {[%cal Be5d7,Bd7f6,Bf6g4][%mdl 32]} 26. Rxf6 Nxf6 {[%mdl 4096] Endgame KRN-KRN} 27. Nd6 {Against Rc8} Ng4 28. Rxd4 Rxf2+ 29. Kg1 Rf6 {Threatens to win with ...Ne3.} 30. Rxg4 Rxd6 $11 {KR-KR} 31. Rd4 Kf7 32. Kf2 Ke6 33. Ke3 Rc6 34. Kd2 Ke5 35. e3 Rh6 36. h4 Rf6 37. Ke2 {Prevents Rf2+.} Rg6 38. g4 Rc6 39. Kd2 {Prevents Rc2+.} Rc4 40. Rxc4 dxc4 {KP-KP} 41. a4 Ke4 {Hoping for ...Kf3.} 42. Ke2 Kd5 43. Kf3 $2 {[%mdl 8192] [#]} (43. Kd2 $11) 43... b5 $1 $19 44. e4+ Kc5 45. Ke2 bxa4 {[%cal Oc4c3] ( -> ...c3!)} 46. Ke3 c3 {Weighted Error Value: White=0.59/Black=0.12 (very precise)} 0-1

[Event "Czech Open-Rapid 2022"]
[Site "Pardubice"]
[Date "2022.07.20"]
[Round "2.17"]
[White "Kraus, Ondrej"]
[Black "Mladek, Richard"]
[Result "1-0"]
[ECO "D30"]
[WhiteElo "1993"]
[BlackElo "2330"]
[Annotator "TA"]
[PlyCount "63"]
[EventDate "2022.07.20"]
[EventType "swiss"]
[EventCountry "CZE"]
[SourceTitle "playchess.com"]
[Source "ChessBase"]
[SourceQuality "1"]
[TimeControl "1200+10"]

{[%evp 9,63,7,25,1,11,11,50,58,65,60,46,41,137,127,109,29,32,0,27,33,39,44,82,105,78,52,59,28,86,87,87,77,100,80,125,98,115,99,256,248,448,390,923,875,1241,1233,1227,674,1212,1114,3427,2774,29992,29993,29990,2080]} 1. d4 d5 2. c4 e6 3. Nf3 a6 4. e3 Nf6 5. Nc3 b6 6. Bd3 {D30: Queen's Gambit Declined: Systems without Nc3.} Bb7 7. O-O {[#]} Ne4 $146 ({Predecessor:} 7... Nbd7 8. cxd5 exd5 9. Qc2 Be7 10. e4 dxe4 11. Nxe4 O-O 12. Ne5 Nxe4 13. Bxe4 Bxe4 14. Qxe4 {½-½ (38) Smirnov,P (2544)-Andreikin,D (2726) Chess.com INT 2020}) 8. Qc2 {[%cal Rc3e4] White is slightly better.} f5 9. cxd5 exd5 10. Ne5 {And now f3 would win.} Bd6 (10... Nd7 $14) 11. f3 $16 Nxc3 12. Qxc3 (12. bxc3 $16 Bxe5 13. dxe5) 12... O-O $1 $11 13. Bd2 Nd7 14. b4 {[%cal Bb2b4,Bb4b5][%mdl 32]} Qe8 {[%cal Rd7e5]} 15. f4 $36 {[%mdl 2048] White has some pressure.} Nb8 16. Qc2 g6 17. a4 {0x0.001ebed959aedp-1022s more active pieces. The black rooks are badly placed.} Nd7 {[%cal Bb8d7,Bd7f6,Bf6e4][%mdl 32]} 18. b5 a5 (18... Qe6 $11) 19. Rac1 $16 Nf6 20. Be1 Ne4 21. Bh4 Rc8 22. Qa2 Kh8 23. Kh1 g5 $2 {Black cannot hold the game after this.} (23... Nf6 $16) 24. Bxe4 $18 ({But not} 24. fxg5 $6 Qh5 25. Rf4 Bxe5 26. dxe5 Nc5 $16) 24... dxe4 $2 (24... gxh4 {was called for.} 25. Bxd5 Bxd5 26. Qxd5 Rd8) 25. Bxg5 Qh5 $2 (25... h5 26. Qf2 Kg7) 26. Qe6 {[#] Strongly threatening g4.} Rce8 27. Bf6+ Rxf6 28. Qxf6+ Kg8 29. g4 fxg4 {[#]} 30. Nxg4 $1 {[%mdl 512]} h6 (30... Qxg4 31. Rg1) 31. Rg1 Kh7 32. Qxd6 {Weighted Error Value: White=0.15 (very precise) /Black=0.64} 1-0

[Event "Czech Open-Rapid 2022"]
[Site "Pardubice"]
[Date "2022.07.20"]
[Round "2.18"]
[White "Seger, Ruediger"]
[Black "Tolmacevs, Artjoms"]
[Result "1-0"]
[ECO "B22"]
[WhiteElo "2299"]
[BlackElo "2022"]
[Annotator "TA"]
[PlyCount "93"]
[EventDate "2022.07.20"]
[EventType "swiss"]
[EventCountry "CZE"]
[SourceTitle "playchess.com"]
[Source "ChessBase"]
[SourceQuality "1"]
[TimeControl "1200+10"]

{[%evp 15,93,-1,0,-12,0,0,36,24,241,243,231,240,249,237,214,135,217,225,369,360,487,391,397,353,397,405,415,417,411,399,477,478,460,458,479,462,898,898,890,877,795,877,784,811,837,791,675,660,504,302,358,339,451,333,497,316,5606,2350,29957,29962,29969,29965,29972,29974,29978,29979,29979,29980,29980,29981,29981,29982,29982,29983,29984,29985,29985,29986,29990,29991]} 1. e4 {[%emt 0:00:02][%cal Be2e4,Be4e5][%mdl 32]} c5 {[%emt 0:00:01]} 2. c3 {[%emt 0:00:01]} Nf6 {[%emt 0:00:02]} 3. e5 {[%emt 0:00:01]} Nd5 {[%emt 0:00:01]} 4. d4 {[%emt 0:00:01]} cxd4 {[%emt 0:00:03]} 5. Nf3 {[%emt 0:00:01]} Nc6 {[%emt 0:00:04]} 6. cxd4 {[%emt 0:00:02]} d6 {[%emt 0:00:01]} 7. Bc4 {[%emt 0:00:02]} dxe5 {[%emt 0:00:04] now scores much better than the old 7...Nb6.} 8. dxe5 {[%emt 0:00:04]} Ndb4 {[%emt 0:00:02] Black wants to play ...Qxd1+.} 9. O-O {[%emt 0:00:07] Black must now prevent Qe2. B22: Sicilian: 2 c3.} Qxd1 {[%emt 0:00:09]} 10. Rxd1 {[%emt 0:00:01]} Nc2 {[%emt 0:00:26]} 11. Na3 {[%emt 0:00:02][%cal Bb1a3,Ba3b5,Bb5c7][%mdl 32] White is slightly better.} Nxa1 {[%emt 0:00:02] [#]} (11... Nxa3 $11 {and Black is okay.} 12. bxa3 g6) 12. Nb5 $1 $40 {[%emt 0:00:03][%cal Rb5c7][%mdl 128] White goes for the king.} Bd7 {[%emt 0:01:30]} 13. Nc7+ {[%emt 0:00:53]} Kd8 {[%emt 0:00:00]} 14. Nxa8 {[%emt 0:00:02]} Kc8 {[%emt 0:05:44] [#]} 15. Be3 $146 {[%emt 0:01:48] And now Bxa7 would win.} ({But not} 15. Bxf7 $6 Bg4 $16) ({Predecessor:} 15. Bf4 e6 16. Rxa1 Kb8 17. Ng5 Be7 18. Rd1 Be8 19. Ne4 Kxa8 20. Nd6 Kb8 21. Bb5 {0-1 (68) Zhong,X (2382)-Keymer,V (2558) Chess.com INT 2020}) 15... Bg4 {[%emt 0:08:40]} (15... e6 $16 {was called for.} 16. Rxa1 Kb8) 16. Rxa1 {[%emt 0:04:23]} Kb8 {[%emt 0:00:42] [#]} (16... e6 $142 17. Rc1 Kb8) 17. Ng5 $1 {[%emt 0:05:41]} Be6 {[%emt 0:04:05]} (17... Bh5 18. Bxf7) 18. Nxe6 {[%emt 0:01:09]} fxe6 {[%emt 0:00:01] [#]} 19. Bxe6 $1 {[%emt 0:00:10][%cal Oa1c1] Rc1! is the strong threat.} Kxa8 {[%emt 0:00:01]} (19... g6 20. Rd1) 20. Rd1 {[%emt 0:01:36]} g6 {[%emt 0:00:18]} 21. Rd7 {[%emt 0:02:46]} Bg7 {[%emt 0:00:27]} 22. f4 {[%emt 0:00:15]} g5 {[%emt 0:00:02]} 23. g3 {[%emt 0:00:11][%cal Bg2g3,Bg3f4][%mdl 32]} gxf4 {[%emt 0:00:12]} 24. gxf4 {[%emt 0:00:03]} Bh6 {[%emt 0:00:01]} 25. Bd5 {[%emt 0:01:06] Hoping for Bxc6. This bishop pair is nice.} Rf8 {[%emt 0:00:48]} (25... Re8 $142 26. Kf2 Kb8) 26. Bxc6 {[%emt 0:00:38]} bxc6 {[%emt 0:00:01]} 27. Rxa7+ {[%emt 0:00:20]} Kb8 {[%emt 0:00:01]} 28. Rxe7 {[%emt 0:00:05]} Bxf4 {[%emt 0:00:03]} 29. Bxf4 {[%emt 0:00:46]} Rxf4 {[%emt 0:00:01]} 30. Rxh7 {[%emt 0:00:17][%mdl 4096] Endgame KR-KR} Re4 {[%emt 0:00:01]} 31. Kf2 {[%emt 0:00:30]} Rxe5 {[%emt 0:00:02]} 32. Rh3 {[%emt 0:00:16]} Rc5 {[%emt 0:00:10]} 33. Re3 {[%emt 0:00:04]} Kc7 {[%emt 0:00:02]} 34. b3 {[%emt 0:00:26]} Kb6 {[%emt 0:00:19]} (34... Rh5 {might work better.} 35. h3 Rh8) 35. a4 {[%emt 0:00:05] aiming for h4.} Ka5 $2 {[%emt 0:00:05]} (35... Rh5 36. Kg2 Kc5) 36. h4 {[%emt 0:00:02][%cal Bh2h4,Bh4h5,Bh5h6][%mdl 32] White wants to mate with Rh3.} Kb4 {[%emt 0:00:03]} 37. Rh3 {[%emt 0:00:13] White mates.} Rh5 {[%emt 0:00:01]} 38. Kf3 c5 {[%emt 0:00:19]} 39. Kg4 {[%emt 0:00:10]} Rd5 {[%emt 0:00:03]} 40. h5 {[%emt 0:00:05]} Rd4+ {[%emt 0:00:01]} 41. Kf5 {[%emt 0:00:04]} Rd5+ {[%emt 0:00:29]} 42. Ke6 {[%emt 0:00:05]} Rd8 {[%emt 0:00:16]} 43. h6 {[%emt 0:00:03]} Rh8 {[%emt 0:00:01]} 44. h7 c4 {[%emt 0:00:07] [#]} 45. bxc4 $1 {[%emt 0:00:15]} Kxc4 {[%emt 0:00:06]} 46. Kf6 {[%emt 0:00:01]} Rxh7 {[%emt 0:00:01]} 47. Rxh7 {[%emt 0:00:02] Black got outplayed after the opening.  Weighted Error Value: White=0.32/Black=0.73} 1-0

[Event "Czech Open-Rapid 2022"]
[Site "Pardubice"]
[Date "2022.07.20"]
[Round "2.19"]
[White "Tesar, Jan"]
[Black "Strebkovs, Andrejs"]
[Result "1/2-1/2"]
[ECO "A46"]
[WhiteElo "1975"]
[BlackElo "2283"]
[Annotator "TA"]
[PlyCount "105"]
[EventDate "2022.07.20"]
[EventType "swiss"]
[EventCountry "CZE"]
[SourceTitle "playchess.com"]
[Source "ChessBase"]
[SourceQuality "1"]
[TimeControl "1200+10"]

{[%evp 21,105,8,27,-25,0,-16,-22,-39,0,-55,-68,-68,-57,-62,-26,-64,-27,-39,-25,-68,-31,-29,-33,-40,0,0,44,41,49,49,42,22,9,28,25,41,81,87,314,307,293,322,288,-38,-22,-374,-369,-370,-362,-306,-59,-51,-7,0,0,0,0,0,0,0,0,0,79,85,300,300,300,300,300,300,767,307,304,209,417,406,568,553,1673,1650,1247,912,431,0,1012,0]} 1. d4 Nf6 {[%emt 0:00:02]} 2. Nf3 {[%emt 0:00:03]} d6 {[%emt 0:00:14]} 3. g3 {[%emt 0:00:08]} g6 {[%emt 0:00:05]} 4. Bg2 {[%emt 0:00:03]} Bg7 {[%emt 0:00:04]} 5. O-O {[%emt 0:00:03]} O-O {[%emt 0:00:07]} 6. b3 {[%emt 0:00:02]} Nbd7 {[%emt 0:00:17]} 7. Bb2 {[%emt 0:00:03]} e5 {[%emt 0:01:32]} 8. dxe5 {[%emt 0:02:07]} Ng4 {[%emt 0:01:40]} 9. c4 {[%emt 0:01:35]} dxe5 {[%emt 0:00:31]} 10. h3 {[%emt 0:00:43]} Nh6 {[%emt 0:00:29]} 11. Nc3 {[%emt 0:00:40]} f5 {[%emt 0:01:43] [#]} (11... e4 $5 {[%cal Re4f3]} 12. Nd4 Nc5 $14) 12. e3 $146 {[%emt 0:01:04] E60: King's Indian: Unusual lines and Fianchetto Variation without Nc3.} ({White should play} 12. e4) ({Predecessor:} 12. e4 f4 13. Qd2 c6 14. Rad1 Nf7 15. Na4 Qe7 16. Qc1 Re8 17. Ba3 Qf6 18. Rd3 Bf8 19. Rfd1 Bxa3 20. Qxa3 {1-0 (52) Van Foreest,J (2632)-Bosboom,M (2410) Amstelveen 2019}) 12... Nf7 {[%emt 0:01:58]} (12... e4 $5 {[%cal Re4f3]} 13. Nd4 Ne5 $11) 13. Qe2 {[%emt 0:01:03]} c6 {[%emt 0:01:42]} 14. Rad1 {[%emt 0:00:27] The position is equal.} Qe7 {[%emt 0:00:18]} 15. Rd2 {[%emt 0:01:06]} ({Better is} 15. e4 $11) 15... e4 $15 {[%emt 0:00:52]} 16. Nd4 {[%emt 0:00:09]} Nde5 {[%emt 0:00:09]} 17. Rfd1 {[%emt 0:00:23]} Nd3 {[%emt 0:00:38]} 18. Ba1 {[%emt 0:00:33]} Nfe5 {[%emt 0:00:24]} 19. Na4 {[%emt 0:01:53]} h5 {[%emt 0:01:13]} 20. h4 {[%emt 0:00:12]} Ng4 {[%emt 0:00:34]} 21. Rxd3 {[%emt 0:01:08]} exd3 {[%emt 0:00:06]} 22. Qxd3 {[%emt 0:00:04]} g5 {[%emt 0:01:41]} 23. hxg5 {[%emt 0:00:37]} Qxg5 {[%emt 0:00:12]} 24. Nf3 {[%emt 0:00:04]} Qh6 {[%emt 0:00:30]} 25. Bxg7 {[%emt 0:00:09]} Qxg7 {[%emt 0:00:30]} 26. Nc5 {[%emt 0:00:13]} b6 {[%emt 0:01:29][%cal Bb7b6,Bb6b5,Bb5b4][%mdl 32]} 27. Na4 {[%emt 0:00:55]} Bb7 {[%emt 0:00:43][%cal Oa8d8]} 28. c5 {[%emt 0:00:04]} b5 {[%emt 0:00:35]} 29. Nc3 {[%emt 0:00:02]} Rad8 $2 {[%emt 0:00:10] [#]} (29... Qf6 $16 {was worth a try.}) 30. Qxd8 $18 {[%emt 0:00:14]} Rxd8 {[%emt 0:00:03]} 31. Rxd8+ {[%emt 0:00:02]} Kh7 {[%emt 0:00:03]} 32. Rd3 {[%emt 0:01:32]} (32. Ne2 $18) 32... b4 $36 {[%emt 0:00:13][%mdl 2048] Black has good play.} 33. Ne2 {[%emt 0:01:19][%mdl 8192]} (33. Nd1 $11 {and White is okay.}) 33... Ba6 $19 {[%emt 0:00:14]} 34. Rd2 {[%emt 0:00:17]} Qa1+ {[%emt 0:00:37]} 35. Bf1 {[%emt 0:00:03]} Bxe2 $2 {[%emt 0:00:19]} (35... Qb1 $19 {Strongly threatening ...Bd3.} 36. Rd7+ Kg8) 36. Rxe2 $15 {[%emt 0:00:02]} Qc3 {[%emt 0:00:29]} (36... Ne5 $5 {[%cal Re5f3]} 37. Nxe5 Qxe5 $15) 37. Nd4 $1 {[%emt 0:00:34]} Ne5 {[%emt 0:00:37]} 38. Bh3 $1 {[%emt 0:00:39]} Ng4 {[%emt 0:00:54]} 39. Nxf5 {[%emt 0:01:27]} Qxc5 {[%emt 0:00:12]} 40. Nd4 {[%emt 0:00:07]} Qc1+ {[%emt 0:00:14]} 41. Kg2 {[%emt 0:00:03]} Ne5 {[%emt 0:00:49]} (41... Qb1 $11 {keeps the balance.} 42. Rc2 Kg7) 42. Rc2 $16 {[%emt 0:00:20]} Qa1 {[%emt 0:00:09]} (42... Qd1 $16) 43. Rc5 $18 {[%emt 0:01:03]} ({Less strong is} 43. Nxc6 Nxc6 44. Rxc6 Qxa2 $14) 43... Nf7 {[%emt 0:00:37]} 44. Rxh5+ {[%emt 0:00:07]} Kg7 {[%emt 0:00:09]} 45. Ra5 {[%emt 0:00:03]} ({Don't play} 45. Nxc6 Qxa2 46. Nd4 (46. Nxb4 Qxb3 47. Nd5 a5 $14) 46... a5 $18) 45... Ne5 $2 {[%emt 0:00:16]} (45... Qb2 46. Nxc6 Qc2) 46. Rxa7+ {[%emt 0:00:12]} (46. Rxe5 $142 Qxa2 47. Bd7) 46... Kf6 {[%emt 0:00:22]} 47. Ra6 {[%emt 0:00:02]} Nd3 $2 {[%emt 0:00:09]} (47... Ke7 48. Bf5 Qb2 49. Nxc6+ Nxc6) 48. Rxc6+ {[%emt 0:00:09]} Kg7 {[%emt 0:00:30]} 49. Bf5 {[%emt 0:02:04]} Ne1+ {[%emt 0:00:06]} 50. Kh3 {[%emt 0:01:03] [#] Bg6 is the strong threat.} Qxa2 {[%emt 0:00:06]} 51. Rc7+ {[%emt 0:01:14]} Kf6 {[%emt 0:00:05]} 52. Rc6+ {[%emt 0:00:08]} (52. f4 $142) 52... Kg7 $1 {[%emt 0:00:03]} 53. Rc7+ $2 {[%emt 0:00:02] Weighted Error Value: White=0.63/Black=0.61} (53. Bg6 $18 Qa8 54. Nf5+ Kh8 55. Re6) 1/2-1/2

[Event "Czech Open-Rapid 2022"]
[Site "Pardubice"]
[Date "2022.07.20"]
[Round "2.20"]
[White "Krak, Tomas"]
[Black "Slavik, Jan"]
[Result "1-0"]
[ECO "A05"]
[WhiteElo "2312"]
[BlackElo "1913"]
[Annotator "TA"]
[PlyCount "83"]
[EventDate "2022.07.20"]
[EventType "swiss"]
[EventCountry "CZE"]
[SourceTitle "playchess.com"]
[Source "ChessBase"]
[SourceQuality "1"]
[TimeControl "1200+10"]

{[%evp 12,82,83,71,103,116,125,101,193,193,298,208,208,222,219,220,211,214,257,258,268,248,285,291,281,267,303,269,293,266,268,266,273,273,308,297,293,299,312,86,306,300,300,296,295,286,287,294,319,318,320,317,339,335,426,426,540,534,716,585,529,522,535,412,416,419,454,450,474,474,29998,29999,29999]} 1. Nf3 {[%emt 0:00:05]} Nf6 {[%emt 0:00:13]} 2. c4 d5 {[%emt 0:02:23]} 3. cxd5 {[%emt 0:00:26]} Nxd5 {[%emt 0:00:01]} 4. d4 {[%emt 0:00:36]} e6 {[%emt 0:00:15]} 5. e4 {[%emt 0:00:41]} Nf6 {[%emt 0:00:03]} 6. Nc3 {[%emt 0:00:03]} Be7 {[%emt 0:00:10]} 7. Bd3 {[%emt 0:00:20]} Nbd7 {[%emt 0:00:19] D06: Queen's Gambit: Symmetrical and Baltic Defences.} 8. O-O {[%emt 0:00:21]} O-O {[%emt 0:00:17]} 9. Re1 {[%emt 0:00:55] White is more active.} h6 {[%emt 0:00:27] [#]} (9... Re8 $16 {is a better defense.}) 10. Bc2 $146 {[%emt 0:00:26] Threatens to win with e5.} ({Predecessor:} 10. Bf4 Nh5 11. Be3 Nhf6 12. Qd2 h5 13. Rac1 a6 14. Qc2 Ne8 15. e5 Nb6 16. Ne4 {½-½ (32) Jullien,P (1700)-Mallet,B (1520) Meyreuil 2004}) 10... c5 {[%emt 0:00:57]} (10... Re8 $142 11. a3 c6) 11. d5 {[%emt 0:00:52] Black must now prevent d6.} Nb6 {[%emt 0:00:32][%cal Re6d5]} 12. d6 {[%emt 0:00:48]} Qxd6 {[%emt 0:06:40]} 13. Qxd6 {[%emt 0:00:04][%mdl 64] [#] Remove Defender} Bxd6 {[%emt 0:00:01]} 14. e5 {[%emt 0:00:02]} Be7 {[%emt 0:00:01]} 15. exf6 {[%emt 0:00:03]} Bxf6 {[%emt 0:00:02]} 16. Ne4 {[%emt 0:01:42]} Bd4 {[%emt 0:00:51]} 17. Nxd4 {[%emt 0:00:40]} cxd4 {[%emt 0:00:01]} 18. Nc5 {[%emt 0:00:42]} Nd7 {[%emt 0:00:04]} 19. Nd3 {[%emt 0:00:14]} b6 {[%emt 0:00:19]} 20. Bf4 {[%emt 0:01:28][%cal Bc1f4,Bf4c7,Bc7d6][%mdl 32]} Bb7 {[%emt 0:00:37]} 21. Rac1 {[%emt 0:00:37]} Rac8 {[%emt 0:00:01]} 22. Bb3 {[%emt 0:01:04]} Rfd8 {[%emt 0:01:16]} 23. Bc7 {[%emt 0:01:23]} Rf8 {[%emt 0:00:27]} 24. f3 {[%emt 0:04:30]} Ba6 {[%emt 0:00:41]} 25. Bc4 {[%emt 0:00:36] [#]} (25. Ba4 $18 {has better winning chances.}) 25... Bb7 $2 {[%emt 0:00:32]} (25... Bxc4 $16 {keeps fighting.} 26. Rxc4 Nc5 27. Rxc5 (27. Nxc5 Rxc7 28. Kf2 Rxc5 $17) 27... bxc5) 26. Bb5 $18 {[%emt 0:00:32]} Nf6 {[%emt 0:01:08]} 27. Bd6 {[%emt 0:00:44]} Rfd8 {[%emt 0:01:37]} 28. Rxc8 {[%emt 0:00:10]} Rxc8 {[%emt 0:00:04]} 29. Rc1 {[%emt 0:00:28]} Rxc1+ {[%emt 0:03:12]} 30. Nxc1 {[%emt 0:00:01]} a6 {[%emt 0:00:02]} 31. Bc4 {[%emt 0:00:09]} Nd7 {[%emt 0:00:06]} 32. Nd3 {[%emt 0:01:21]} Kh7 {[%emt 0:01:03]} 33. Ne5 {[%emt 0:00:14]} Nf6 {[%emt 0:01:03]} 34. Nxf7 {[%emt 0:00:11]} Kg6 {[%emt 0:00:01]} 35. Ne5+ {[%emt 0:00:22]} Kg5 {[%emt 0:00:01]} 36. g3 {[%emt 0:00:55][%cal Bg2g3,Bg3g4][%mdl 32]} Nd5 {[%emt 0:00:06]} 37. Bxd5 {[%emt 0:01:14]} Bxd5 {[%emt 0:00:02]} 38. a3 {[%emt 0:00:14]} Kf5 {[%emt 0:00:27]} 39. Kf2 {[%emt 0:00:10]} g6 {[%emt 0:00:23]} 40. g4+ {[%emt 0:00:11]} Kg5 {[%emt 0:00:05]} (40... Kf6 $18 41. Nd7+ Kf7 42. Nxb6 Bb3) 41. Be7+ {[%emt 0:00:19]} Kf4 {[%emt 0:00:02]} 42. Nd3# {White took control after the opening.  Weighted Error Value: White=0.25 (precise) /Black=0.59} 1-0